bitfinex-derivatives/quotes_ETHF0:USTF0_20250919
["timestamp","ask_amount","ask_price","bid_price","bid_amount"]
[1758274918972,1.50509638,4537.4,4537.3,5.8583]
[1758274919165,1.80239638,4537.4,4537.3,5.8583]
[1758274921674,1.50509638,4537.4,4537.3,5.8583]
[1758274921869,1.03649638,4537.4,4537.3,5.8583]
[1758274922070,1.03649638,4537.4,4537.3,1.8583]
[1758274923077,0.81449638,4537.4,4537.3,1.8583]
[1758274923475,1.03649638,4537.4,4537.3,1.8583]
[1758274923777,0.81449638,4537.4,4537.3,1.8583]
[1758274924076,1.03649638,4537.4,4537.3,1.8583]
[1758274924276,1.80239638,4537.4,4537.3,1.8583]
[1758274924477,2.12329638,4537.4,4537.3,1.4252]
[1758274928185,2.12329638,4537.4,4537.3,0.7738]
[1758274931686,2.12329638,4537.4,4535.6,0.61864]
[1758274931687,2.12329638,4537.4,4536.2,0.4166]
[1758274931888,1.0868,4536.9,4536.8,1.079]
[1758274932186,2.06287854,4536.9,4536.8,1.079]
[1758274932388,2.12329638,4536.9,4536.8,1.079]
[1758274932582,2.12329638,4536.9,4536.8,0.7738]
[1758274934786,2.12329638,4536.9,4536.8,1.079]
[1758274936088,2.12329638,4536.9,4536.8,1.8207]
[1758274940088,2.12329638,4536.9,4536.8,1.4041]
[1758274942897,2.12329638,4536.9,4536.8,1.8207]
[1758274943298,2.12329638,4536.9,4536.8,1.4041]
[1758274947003,2.12329638,4536.9,4536.8,0.7738]
[1758274951902,6.12329638,4536.9,4536.8,0.7738]
[1758274953604,0.7984,4536.0,4535.9,1.0906]
[1758274953906,2.23087854,4536.0,4535.9,1.3905]
[1758274954406,2.29129638,4536.0,4535.9,1.3905]
[1758274958609,2.29129638,4536.0,4535.9,1.0906]
[1758274962220,2.29129638,4536.0,4535.9,1.3905]
[1758274965221,2.29129638,4536.0,4535.9,1.0906]
[1758274966021,2.29129638,4536.0,4535.9,1.3905]
[1758274967524,2.29129638,4536.0,4535.9,1.0906]
[1758274968423,2.29129638,4536.0,4535.9,0.7738]
[1758274970221,2.29129638,4536.0,4535.9,1.0906]
[1758274979832,2.29129638,4536.0,4535.9,0.7738]
[1758274980834,2.29129638,4536.0,4535.9,1.0885]
[1758274983834,2.29129638,4536.0,4535.9,0.7738]
[1758274989535,1.2541,4535.5,4535.4,0.7738]
[1758274989744,2.22917854,4535.5,4535.4,0.7738]
[1758274990543,2.28959638,4535.5,4535.4,0.7738]
[1758274999946,2.28017888,4535.5,4535.4,0.7738]
[1758275000747,6.28017888,4535.5,4535.4,0.7738]
[1758275002435,6.50066888,4535.5,4535.4,0.7738]
[1758275002636,6.50066888,4535.5,4535.3,0.4409803]
[1758275002840,1.82636104,4535.4,4535.3,0.4409803]
[1758275003537,1.88677888,4535.4,4535.3,0.4409803]
[1758275003942,1.8866746,4535.4,4535.3,0.4409803]
[1758275006342,5.8866746,4535.4,4535.3,0.4409803]
[1758275006849,7.47251409,4535.4,4535.3,0.4409803]
[1758275007146,5.8866746,4535.4,4535.3,0.4409803]
[1758275007546,5.8866746,4535.4,4534.7,0.7738]
[1758275007746,1.0817,4534.8,4534.7,0.7738]
[1758275007946,2.04725676,4534.8,4534.7,0.7738]
[1758275008750,2.1076746,4534.8,4534.7,0.7738]
[1758275010842,3.84465771,4534.8,4534.7,0.7738]
[1758275011949,3.84465771,4534.8,4534.2,0.7738]
[1758275012150,1.0324,4534.3,4534.2,1.0668]
[1758275012350,1.99795676,4534.3,4534.2,1.0668]
[1758275012850,2.0583746,4534.3,4534.2,1.0668]
[1758275013051,2.06033387,4534.3,4534.2,1.0668]
[1758275015648,1.83842001,4534.3,4534.2,1.0668]
[1758275015948,2.06039108,4534.3,4534.2,1.0668]
[1758275016450,2.06043019,4534.3,4534.2,1.0668]
[1758275017256,2.06043019,4534.3,4534.2,0.7738]
[1758275017458,2.06043019,4534.3,4533.6,0.7738]
[1758275017755,1.32931235,4534.2,4534.1,0.293]
[1758275018152,1.77901235,4534.2,4534.1,0.293]
[1758275018347,1.83943019,4534.2,4534.1,0.293]
[1758275019957,0.4809,4534.0,4533.9,0.293]
[1758275020155,1.21231018,4534.0,4533.9,0.293]
[1758275020360,2.18661235,4534.0,4533.9,0.293]
[1758275020654,2.24703019,4534.0,4533.9,0.293]
[1758275021160,1.47773019,4534.0,4533.9,0.9739]
[1758275021549,1.76613019,4534.0,4533.9,0.9739]
[1758275021751,1.95273019,4534.0,4533.9,0.9739]
[1758275025361,2.24703019,4534.0,4533.9,0.9739]
[1758275025861,2.24703019,4534.0,4533.9,0.6016]
[1758275026064,2.24703019,4534.0,4533.6,0.7738]
[1758275026264,1.0324,4533.7,4533.6,1.3754]
[1758275026452,2.06043019,4533.7,4533.6,1.3754]
[1758275026957,2.06043019,4533.7,4533.6,1.7477]
[1758275027162,2.06043019,4533.7,4533.6,1.3754]
[1758275033375,2.06043019,4533.7,4533.6,0.7738]
[1758275034379,2.06043019,4533.7,4533.6,1.0668]
[1758275034671,2.06043019,4533.7,4533.6,1.3754]
[1758275037377,2.06043019,4533.7,4533.6,1.0668]
[1758275037777,2.06043019,4533.7,4533.6,0.7738]
[1758275038170,6.2810002,4533.7,4533.6,0.7738]
[1758275038765,6.06043019,4533.7,4533.6,0.7738]
[1758275038973,1.2068,4533.0,4532.9,0.7738]
[1758275039168,2.17441235,4533.0,4532.9,0.7738]
[1758275039568,2.23483019,4533.0,4532.9,0.7738]
[1758275048686,2.23630273,4533.0,4532.9,0.7738]
[1758275050491,1.0272,4532.3,4532.2,0.7738]
[1758275050789,2.05670273,4532.3,4532.2,0.7738]
[1758275051187,2.05670273,4532.3,4532.2,1.0668]
[1758275053794,2.05670273,4532.3,4532.2,1.7032]
[1758275053989,1.75240273,4532.3,4532.2,1.7032]
[1758275054187,2.05670273,4532.3,4532.2,1.3464]
[1758275056192,2.05670273,4532.3,4532.2,0.7738]
[1758275059101,2.05670273,4532.3,4532.2,1.0668]
[1758275063402,2.05554432,4532.3,4532.2,1.0668]
[1758275065595,2.05554432,4532.3,4532.2,0.7738]
[1758275065797,0.7857,4532.0,4531.9,0.293]
[1758275066001,1.64981018,4532.0,4531.9,0.293]
[1758275066199,2.17515597,4532.0,4531.9,0.293]
[1758275066812,2.23557381,4532.0,4531.9,0.293]
[1758275067503,1.0272,4531.7,4531.6,0.7738]
[1758275067698,2.05621756,4531.7,4531.6,0.7738]
[1758275068603,0.4689,4531.0,4530.9,0.2987]
[1758275068797,1.68252802,4531.0,4530.9,0.2987]
[1758275069003,2.20811756,4531.0,4530.9,0.2987]
[1758275069308,1.68252802,4531.0,4530.9,0.2987]
[1758275069707,2.20788403,4531.0,4530.9,0.2987]
[1758275072306,2.20788403,4531.0,4530.7,0.7738]
[1758275072511,2.20788403,4531.0,4530.7,1.0725]
[1758275072512,1.0119,4530.8,4530.7,1.0725]
[1758275072712,1.23391018,4530.8,4530.7,1.0725]
[1758275073011,1.29432802,4530.8,4530.7,1.0725]
[1758275074714,1.31001193,4530.8,4530.7,1.0725]
[1758275075116,1.07231784,4530.8,4530.7,1.0725]
[1758275078216,1.07231784,4530.8,4530.7,1.347]
[1758275079118,1.31001919,4530.8,4530.7,1.347]
[1758275080820,1.31001919,4530.8,4530.7,1.0725]
[1758275084928,1.31001919,4530.8,4530.7,1.347]
[1758275085433,1.31001919,4530.8,4530.7,1.0725]
[1758275085629,1.31001919,4530.8,4530.7,0.7738]
[1758275085834,1.22931919,4530.8,4530.7,1.347]
[1758275086235,1.53101919,4530.8,4530.7,1.347]
[1758275088337,1.53101919,4530.8,4530.7,1.0725]
[1758275088530,2.05638431,4530.8,4530.7,1.0725]
[1758275089333,2.05638431,4530.8,4530.7,0.7738]
[1758275090133,2.05638431,4530.8,4530.7,1.0725]
[1758275090329,1.81868296,4530.8,4530.7,1.0725]
[1758275090535,2.0564265,4530.8,4530.7,1.0725]
[1758275092738,2.0564265,4530.8,4530.7,0.7738]
[1758275094236,2.0564265,4530.8,4530.7,1.0725]
[1758275098443,1.53106138,4530.8,4530.7,1.0725]
[1758275098641,2.05792049,4530.8,4530.7,1.0725]
[1758275098942,1.53106138,4530.8,4530.7,1.0725]
[1758275099439,2.05795156,4530.8,4530.7,1.0725]
[1758275099645,1.53106138,4530.8,4530.7,1.0725]
[1758275099847,2.05794813,4530.8,4530.7,1.0725]
[1758275100240,1.83694813,4530.8,4530.7,1.3451]
[1758275100440,0.82504813,4530.8,4530.7,1.89231]
[1758275100640,0.1672,4531.5,4530.7,5.89231]
[1758275100843,0.33682353,4531.4,4531.3,0.8916]
[1758275101146,0.77582353,4531.4,4531.3,0.8916]
[1758275101347,1.87001859,4531.4,4531.3,0.5651]
[1758275101745,1.1082,4531.4,4531.3,0.5651]
[1758275101944,1.1082,4531.4,4531.3,0.8916]
[1758275102245,0.8143,4531.4,4531.3,0.8916]
[1758275102447,0.2615,4531.4,4531.3,0.8916]
[1758275105149,0.9944,4531.4,4531.3,0.8916]
[1758275105942,0.7734,4531.4,4531.3,0.8916]
[1758275106140,0.9944,4531.4,4531.3,0.8916]
[1758275109050,0.9944,4531.4,4530.6,0.4354]
[1758275109354,1.0062,4531.2,4531.1,0.7279]
[1758275109552,1.53161136,4531.2,4531.1,0.7279]
[1758275110856,1.53161136,4531.2,4531.1,1.0005]
[1758275111159,1.0062,4531.2,4531.1,1.0005]
[1758275112349,0.2733,4531.2,4531.1,1.0005]
[1758275112554,0.1796,4532.0,4531.1,0.5651]
[1758275112756,0.2733,4531.3,4531.2,1.0005]
[1758275112951,0.93535819,4531.3,4531.2,1.0005]
[1758275113155,1.459173,4531.3,4531.2,1.0005]
[1758275114060,1.680173,4531.3,4531.2,1.0005]
[1758275114351,1.74584501,4533.0,4531.5,0.1726]
[1758275114557,1.0062,4532.0,4531.9,1.0005]
[1758275114757,1.75310089,4532.0,4531.9,1.0005]
[1758275114955,1.97410089,4532.0,4531.9,1.0005]
[1758275117057,1.75310089,4532.0,4531.9,1.0005]
[1758275117454,1.97410089,4532.0,4531.9,1.0005]
[1758275119658,1.75310089,4532.0,4531.9,1.0005]
[1758275119857,1.97410089,4532.0,4531.9,1.0005]
[1758275120058,1.75310089,4532.0,4531.9,1.0005]
[1758275120252,1.97410089,4532.0,4531.9,1.0005]
[1758275120457,1.02020089,4532.0,4531.9,1.0005]
[1758275120656,1.24120089,4532.0,4531.9,1.0005]
[1758275121057,1.68020089,4532.0,4531.9,1.0005]
[1758275121748,1.97410089,4532.0,4531.9,1.0005]
[1758275123658,0.439,4532.4,4532.3,0.5651]
[1758275123860,0.74706831,4532.4,4532.3,1.0005]
[1758275124061,0.96806831,4532.4,4532.3,1.0005]
[1758275124355,0.74706831,4532.4,4532.3,1.0005]
[1758275124555,1.24136831,4532.4,4532.3,1.0005]
[1758275124761,1.97426831,4532.4,4532.1,0.4354]
[1758275124960,1.97426831,4532.4,4532.0,0.2925]
[1758275124961,0.2733,4532.1,4532.0,0.2925]
[1758275125153,0.221,4532.4,4532.2,0.4354]
[1758275125355,0.74715376,4532.3,4532.2,0.7279]
[1758275126053,0.74715376,4532.3,4532.2,1.0005]
[1758275126755,0.96815376,4532.3,4532.2,1.0005]
[1758275127156,0.74715376,4532.3,4532.2,1.0005]
[1758275127360,0.96815376,4532.3,4532.2,1.0005]
[1758275130164,0.74715376,4532.3,4532.2,1.0005]
[1758275130363,0.96815376,4532.3,4532.2,1.0005]
[1758275131858,0.74715376,4532.3,4532.2,1.0005]
[1758275132061,0.96815376,4532.3,4532.2,1.0005]
[1758275132262,0.74501675,4532.3,4532.2,1.0005]
[1758275133257,35.765,4532.5,4532.4,0.5654]
[1758275133456,35.986,4532.5,4532.4,1.0041]
[1758275137760,35.753,4534.1,4533.0,0.7315]
[1758275137966,0.98338315,4533.1,4533.0,1.1702]
[1758275138568,0.98338315,4533.1,4532.9,0.4387]
[1758275138772,0.74520315,4533.0,4532.9,0.4387]
[1758275139674,0.96620315,4533.0,4532.9,0.4387]
[1758275141074,0.96620315,4533.0,4532.9,1.0041]
[1758275143179,0.9661653,4533.0,4532.9,1.0041]
[1758275146577,0.9661653,4533.0,4532.9,0.7228]
[1758275146778,0.9661653,4533.0,4532.8,1.201]
[1758275146978,0.7451653,4532.9,4532.8,1.6397]
[1758275149285,0.7451653,4532.9,4532.8,2.2051]
[1758275153789,0.9661653,4532.9,4532.8,2.2051]
[1758275160093,0.96774417,4532.9,4532.8,2.2051]
[1758275160991,0.74674417,4532.9,4532.8,2.2051]
[1758275166597,0.74674417,4532.9,4532.8,1.6397]
[1758275166796,0.74674417,4532.9,4532.8,1.9306]
[1758275169295,4.96735418,4532.9,4532.8,1.6397]
[1758275169492,4.96735418,4532.9,4532.8,1.201]
[1758275169687,4.74674417,4532.9,4532.8,1.6341]
[1758275170298,4.74674417,4532.9,4532.8,0.4331]
[1758275175299,4.74674417,4532.9,4532.6,0.4331]
[1758275175499,0.74674417,4532.8,4532.2,0.4331]
[1758275175702,0.96774417,4532.7,4532.2,0.4331]
[1758275175902,0.74674417,4532.6,4532.2,0.4331]
[1758275176104,0.74674417,4532.5,4532.2,0.4331]
[1758275176294,0.74674417,4532.4,4532.2,0.4331]
[1758275176497,0.74674417,4532.3,4532.2,0.4331]
[1758275177103,0.74674417,4532.3,4532.2,0.724]
[1758275178502,0.74674417,4532.3,4532.2,0.4331]
[1758275179101,0.74674417,4532.3,4532.1,1.6341]
[1758275179298,0.96774417,4532.2,4532.1,1.201]
[1758275179505,0.96774417,4532.2,4532.1,1e-08]
[1758275179705,4.96774417,4532.2,4532.1,1e-08]
[1758275180008,4.96774417,4532.2,4531.5,0.6057]
[1758275180203,0.74674417,4532.1,4531.5,0.6057]
[1758275180410,0.74674417,4532.0,4531.5,0.6057]
[1758275180604,0.74674417,4531.9,4531.5,0.4331]
[1758275180805,0.96774417,4531.8,4531.1,0.4331]
[1758275181010,0.74674417,4531.7,4531.1,0.4331]
[1758275181205,0.74674417,4531.6,4531.1,0.4331]
[1758275181509,0.74674417,4531.5,4531.1,0.4331]
[1758275181710,0.74674417,4531.4,4531.0,0.1661]
[1758275181901,0.96774417,4531.3,4531.0,0.1661]
[1758275182104,0.74674417,4531.2,4531.1,0.4331]
[1758275182712,0.75979509,4531.2,4531.1,0.4331]
[1758275183307,0.75979509,4531.2,4531.0,0.5992]
[1758275183510,0.75979509,4531.1,4531.0,0.5992]
[1758275184417,4.75979509,4531.1,4530.5,0.6029]
[1758275184613,36.51679509,4531.0,4530.5,0.1698]
[1758275184915,0.75979509,4530.9,4530.5,0.1698]
[1758275185108,0.98079509,4530.8,4530.6,0.4331]
[1758275185310,0.75979509,4530.7,4530.6,0.4331]
[1758275185713,4.75979509,4530.7,4530.0,0.1698]
[1758275186016,0.75979509,4530.6,4530.1,0.724]
[1758275186213,0.75979509,4530.5,4530.1,0.4331]
[1758275186416,0.98179509,4530.4,4530.3,1.0091]
[1758275187413,0.97925724,4530.4,4530.3,1.0091]
[1758275189219,0.45658284,4530.4,4530.3,1.0091]
[1758275192016,0.23458284,4530.4,4530.3,1.0091]
[1758275192517,0.45658284,4530.4,4530.3,1.0091]
[1758275192918,0.23458284,4530.4,4530.3,1.0091]
[1758275193113,0.222,4530.4,4530.3,1.0091]
[1758275194121,0.46567487,4530.4,4530.3,1.0091]
[1758275195318,0.24367487,4530.4,4530.3,1.0091]
[1758275195517,0.46567487,4530.4,4530.3,1.0091]
[1758275195917,0.24367487,4530.4,4530.3,1.0091]
[1758275196117,0.46567487,4530.4,4530.3,1.0091]
[1758275196920,0.24367487,4530.4,4530.3,1.0091]
[1758275197115,35.757,4531.0,4530.5,0.1592]
[1758275197315,35.757,4531.0,4530.9,0.96]
[1758275197516,36.5020972,4531.0,4530.9,0.96]
[1758275199927,35.979,4531.0,4530.9,4.96]
[1758275201526,35.757,4531.0,4530.9,4.96]
[1758275201821,35.979,4531.0,4530.9,4.96]
[1758275202420,35.757,4531.0,4530.9,4.96]
[1758275202622,35.1019,4531.0,4530.9,4.96]
[1758275202822,34.8799,4531.0,4530.9,4.96]
[1758275203024,35.1019,4531.0,4530.9,4.96]
[1758275203919,34.8799,4531.0,4530.9,4.96]
[1758275204321,35.1019,4531.0,4530.9,4.96]
[1758275204627,0.163,4532.0,4531.8,0.558]
[1758275204628,0.6787,4531.9,4531.8,0.558]
[1758275204825,1.70945823,4531.9,4531.8,0.96]
[1758275205817,1.70945823,4531.9,4531.8,0.6935]
[1758275206024,1.70945823,4531.9,4531.8,0.2915]
[1758275207422,1.70945823,4531.9,4531.8,0.6935]
[1758275208223,1.70945823,4531.9,4531.8,0.2915]
[1758275209123,1.95107134,4531.9,4531.8,0.2915]
[1758275209425,1.95107134,4531.9,4531.6,0.402]
[1758275209618,0.9625,4531.7,4531.6,0.6935]
[1758275209813,1.72907134,4531.7,4531.6,0.6935]
[1758275210020,1.72907134,4531.7,4531.6,0.96]
[1758275210220,1.04207134,4531.7,4531.6,0.96]
[1758275210520,1.66727134,4531.7,4531.6,0.96]
[1758275210721,1.95107134,4531.7,4531.6,0.96]
[1758275212526,1.95100367,4531.7,4531.1,0.402]
[1758275212729,0.6787,4531.2,4531.1,0.96]
[1758275213028,1.1845,4531.2,4531.1,0.96]
[1758275213429,0.9007,4531.2,4531.1,0.96]
[1758275213620,0.4975,4531.2,4531.1,0.96]
[1758275214124,0.73900437,4531.2,4531.1,0.96]
[1758275215322,0.51700437,4531.2,4531.1,0.96]
[1758275215629,0.46350437,4531.2,4531.1,0.96]
[1758275217125,0.24150437,4531.2,4531.1,0.96]
[1758275217324,0.46350437,4531.2,4531.1,0.96]
[1758275217725,1.42080437,4531.2,4531.1,0.96]
[1758275218934,1.42080437,4531.2,4530.5,0.1592]
[1758275219132,0.6937,4530.6,4530.5,1.1129]
[1758275219836,0.9811,4530.6,4530.5,0.9537]
[1758275220136,1.21919454,4530.6,4530.5,0.9537]
[1758275221226,0.9811,4530.3,4530.2,0.6713]
[1758275221434,1.74520033,4530.3,4529.6,0.3953]
[1758275221625,0.9811,4529.7,4529.6,0.9537]
[1758275221931,1.96714436,4529.7,4529.6,0.276]
[1758275222130,1.96714436,4529.7,4529.1,0.3953]
[1758275222433,0.9811,4529.2,4529.1,0.276]
[1758275222635,0.9811,4529.2,4529.1,0.9537]
[1758275222636,1.21927479,4529.2,4529.1,0.9537]
[1758275223023,0.74097479,4529.2,4529.1,0.9537]
[1758275223227,1.44127479,4529.2,4529.1,0.9537]
[1758275224236,1.2031,4529.2,4529.1,0.9537]
[1758275225326,0.7902,4529.2,4529.1,0.276]
[1758275225525,0.7902,4529.2,4529.1,0.6713]
[1758275225728,0.7902,4529.2,4529.1,0.276]
[1758275225931,0.7902,4529.2,4528.0,0.5671]
[1758275225932,0.2808,4528.1,4528.0,0.5671]
[1758275226136,0.9811,4528.1,4528.0,0.9537]
[1758275227534,0.6937,4528.3,4528.2,0.9537]
[1758275228133,0.2808,4528.3,4528.2,0.9537]
[1758275228337,0.5028,4528.3,4528.2,0.9537]
[1758275230137,0.1651,4529.0,4528.3,0.3953]
[1758275230440,1.44017108,4528.9,4528.8,0.276]
[1758275232038,1.44017108,4528.9,4528.6,0.3953]
[1758275232239,1.2031,4528.9,4528.1,0.3953]
[1758275232639,0.9811,4528.9,4528.1,0.3953]
[1758275232838,0.6937,4528.2,4528.1,0.9537]
[1758275233040,0.222,4528.2,4528.1,0.9537]
[1758275234144,0.4129,4528.5,4528.1,0.9537]
[1758275234344,0.222,4528.4,4528.2,0.3953]
[1758275234545,0.6937,4528.5,4528.4,0.5584]
[1758275234740,0.9157,4528.5,4528.4,0.9537]
[1758275235342,1.2031,4528.5,4528.4,0.9537]
[1758275236144,0.9811,4528.5,4528.4,0.9537]
[1758275236345,1.2031,4528.5,4528.4,0.9537]
[1758275238148,1.3682,4528.5,4528.4,0.276]
[1758275238541,1.3682,4528.5,4528.1,0.3953]
[1758275238741,1.3682,4528.5,4527.6,0.3953]
[1758275238943,1.1462,4528.5,4527.6,0.3953]
[1758275239142,1.2031,4528.4,4528.3,0.6713]
[1758275239943,1.2031,4528.4,4528.3,0.9537]
[1758275242546,1.2031,4528.4,4528.3,0.276]
[1758275242752,1.2031,4528.4,4527.6,0.3953]
[1758275242954,0.9811,4528.3,4528.2,0.276]
[1758275243453,0.9811,4528.3,4528.2,0.9537]
[1758275244252,0.222,4528.3,4528.2,0.9537]
[1758275246649,0.6937,4528.9,4528.8,0.276]
[1758275246853,0.5028,4528.9,4528.8,0.9537]
[1758275247155,35.766,4529.1,4529.0,1.1255]
[1758275247454,36.6817,4529.1,4529.0,1.1255]
[1758275247847,36.4597,4529.1,4529.0,1.1255]
[1758275248050,35.766,4529.1,4529.0,1.1255]
[1758275248246,35.988,4529.1,4529.0,1.1255]
[1758275248847,0.222,4529.1,4529.0,1.1255]
[1758275249351,0.222,4529.3,4529.1,0.3874]
[1758275249550,0.222,4529.3,4529.2,0.9481]
[1758275250152,0.4129,4529.5,4529.2,0.9481]
[1758275250358,0.222,4529.4,4529.3,0.3874]
[1758275250759,0.8864,4529.4,4529.3,0.9481]
[1758275250959,1.1697,4529.4,4529.1,0.3874]
[1758275251162,0.9477,4528.7,4528.6,0.9481]
[1758275251455,0.9477,4528.7,4528.6,0.2848]
[1758275251662,0.9477,4528.7,4528.4,0.3874]
[1758275251857,0.7188,4528.5,4528.4,0.2848]
[1758275252057,0.7188,4528.5,4528.4,0.6722]
[1758275252253,0.7188,4528.5,4527.6,0.3874]
[1758275252457,0.6644,4527.7,4527.6,0.9481]
[1758275252755,0.9477,4527.7,4527.6,0.9481]
[1758275255452,0.3985,4528.0,4527.7,0.3874]
[1758275255655,0.6644,4528.0,4527.9,0.9481]
[1758275255855,0.8864,4528.0,4527.9,0.9481]
[1758275256362,1.18565642,4528.0,4527.9,0.9481]
[1758275256557,1.35525642,4528.0,4527.9,0.3874]
[1758275256758,1.35525642,4528.0,4527.9,0.6722]
[1758275257958,1.35525642,4528.0,4527.9,0.9481]
[1758275258263,1.18565642,4528.0,4527.9,0.9481]
[1758275259861,0.50385642,4528.0,4527.9,0.9481]
[1758275260069,0.2659,4528.2,4528.1,0.9481]
[1758275260366,1.18578281,4528.2,4528.1,0.9481]
[1758275261760,1.18578281,4528.2,4528.1,0.2848]
[1758275262269,1.18578281,4528.2,4527.6,0.3874]
[1758275262270,0.9477,4527.9,4527.6,0.3874]
[1758275262476,0.5492,4527.5,4527.4,0.9481]
[1758275262677,0.9477,4527.5,4527.4,0.9481]
[1758275269383,0.9477,4527.5,4526.6,1.21561]
[1758275269384,1.1173,4527.5,4526.1,2.97924267]
[1758275269683,0.9477,4527.4,4527.3,0.6722]
[1758275270678,0.9477,4527.4,4527.3,0.9481]
[1758275275083,0.222,4527.9,4527.3,0.5607]
[1758275275281,1.18554703,4527.8,4527.7,0.5607]
[1758275275481,1.18554703,4527.8,4527.7,0.9481]
[1758275275677,1.18554703,4527.8,4527.7,0.2848]
[1758275276078,1.18554703,4527.8,4527.0,0.1658]
[1758275276282,0.9477,4527.8,4527.1,0.3874]
[1758275277086,0.5327,4527.2,4527.1,0.3874]
[1758275277284,0.938,4527.2,4527.1,0.2602]
[1758275277589,0.938,4527.2,4527.1,0.6424]
[1758275277988,0.938,4527.2,4527.1,0.9164]
[1758275278883,0.6676,4527.2,4527.1,0.9164]
[1758275279589,0.9274,4527.2,4527.1,0.9164]
[1758275280684,0.9274,4527.2,4527.1,0.2602]
[1758275280891,0.9274,4527.2,4526.8,0.3803]
[1758275281285,0.9274,4527.2,4527.1,0.6461]
[1758275285394,0.9274,4527.2,4527.1,0.9032]
[1758275287598,0.3803,4527.6,4527.1,0.5229]
[1758275287902,0.2684,4527.5,4527.4,0.9032]
[1758275288295,0.3803,4528.1,4527.7,0.9032]
[1758275288602,0.2684,4527.9,4527.8,0.3803]
[1758275288900,0.88601152,4527.9,4527.8,0.9032]
[1758275289496,1.14581152,4527.9,4527.8,0.9032]
[1758275289897,1.14581152,4527.9,4527.8,0.2658]
[1758275290397,0.2684,4527.4,4527.3,0.77768]
[1758275290597,0.6487,4527.4,4527.3,1.30058]
[1758275291904,0.9085,4527.4,4527.3,0.9032]
[1758275292096,0.5282,4527.4,4526.7,0.3803]
[1758275292297,0.9085,4526.9,4526.8,0.9032]
[1758275293591,0.5282,4526.5,4526.4,0.6461]
[1758275293793,0.5282,4526.5,4525.7,1.98552267]
[1758275293794,0.5282,4525.8,4525.7,0.3803]
[1758275293999,0.2598,4525.7,4525.6,0.2658]
[1758275294194,0.9085,4525.7,4525.6,0.2658]
[1758275294501,0.9085,4525.7,4525.6,0.9032]
[1758275294703,0.222,4526.1,4526.0,1.0554]
[1758275294898,0.2684,4526.4,4526.3,0.9032]
[1758275295104,0.6023,4526.6,4526.4,0.3803]
[1758275295397,0.2684,4526.5,4526.4,0.9032]
[1758275295594,0.9085,4526.5,4526.4,0.9032]
[1758275295795,0.5282,4525.7,4525.6,0.6461]
[1758275295990,0.9085,4525.7,4525.6,0.9032]
[1758275296196,0.3803,4526.2,4525.8,0.39751]
[1758275296503,0.9085,4526.2,4526.1,0.9032]
[1758275298004,0.223,4526.4,4526.2,0.3803]
[1758275298306,0.223,4526.4,4526.3,0.9032]
[1758275298507,0.8717,4526.4,4526.3,0.9032]
[1758275299499,1.1315,4526.4,4526.3,0.9032]
[1758275301703,1.1315,4526.4,4525.9,0.3975]
[1758275301901,1.1315,4526.4,4525.5,0.1522]
[1758275301902,1.1315,4526.4,4525.8,0.3803]
[1758275302297,0.2684,4525.9,4525.8,1.30071]
[1758275302907,0.9085,4526.3,4526.2,0.9032]
[1758275305900,0.223,4526.5,4526.3,0.3803]
[1758275306106,0.8717,4526.5,4526.4,0.9032]
[1758275306501,0.9085,4526.5,4526.4,0.9032]
[1758275308906,0.6883,4526.5,4526.0,0.1522]
[1758275309104,0.9342,4526.2,4526.1,0.9505]
[1758275313001,0.9342,4526.2,4525.6,0.3993]
[1758275313207,0.3904,4526.1,4525.5,0.3993]
[1758275313404,0.9342,4525.6,4525.5,0.9505]
[1758275319809,0.9342,4525.6,4525.5,0.2788]
[1758275320706,0.9342,4525.6,4525.5,0.6781]
[1758275321206,0.2718,4525.6,4525.5,1.1032]
[1758275321608,0.6622,4525.6,4525.5,1.1032]
[1758275322205,0.3904,4525.9,4525.5,0.7039]
[1758275322414,0.9342,4525.7,4525.6,0.5512]
[1758275323012,0.6622,4525.7,4525.6,0.9505]
[1758275323212,0.9342,4525.7,4525.3,0.44195477]
[1758275323413,0.9342,4525.7,4525.4,0.3993]
[1758275323915,0.9342,4525.7,4525.5,0.3993]
[1758275324114,0.9342,4525.7,4525.6,0.2788]
[1758275324313,0.9342,4525.7,4525.6,0.6781]
[1758275324714,0.9342,4525.7,4525.6,0.9505]
[1758275326416,0.9342,4525.7,4525.6,0.2788]
[1758275326915,0.9342,4525.7,4525.6,0.6781]
[1758275327512,0.9342,4525.7,4525.6,0.2788]
[1758275328118,0.9342,4525.7,4525.3,0.84125477]
[1758275328313,0.9342,4525.5,4525.4,0.6781]
[1758275328516,1.0943,4525.5,4525.3,0.44195477]
[1758275330217,1.70462834,4525.4,4525.3,0.44195477]
[1758275330523,1.92559835,4525.4,4525.3,0.44195477]
[1758275330715,1.70462834,4525.4,4525.3,0.44195477]
[1758275332021,5.70462834,4525.4,4525.3,0.44195477]
[1758275332224,1.70462834,4525.4,4525.3,0.44195477]
[1758275332514,5.70462834,4525.4,4525.3,0.44195477]
[1758275335620,1.70462834,4525.4,4525.3,0.44195477]
[1758275335823,1.39751405,4525.4,4525.3,0.44195477]
[1758275336418,5.17451405,4525.4,4525.3,0.44195477]
[1758275336726,1.17451405,4525.4,4525.3,0.44195477]
[1758275336928,1.39751405,4525.4,4525.3,0.44195477]
[1758275337628,1.37851405,4525.4,4525.3,0.44195477]
[1758275338224,1.17451405,4525.4,4525.3,0.44195477]
[1758275338526,1.17451405,4525.4,4525.3,1.34065477]
[1758275338725,0.2585,4525.9,4525.8,0.2694]
[1758275339025,1.36682276,4525.9,4525.8,0.2694]
[1758275339230,1.36682276,4525.9,4525.8,0.6433]
[1758275339527,1.36682276,4525.9,4525.5,0.3739]
[1758275339728,0.9035,4525.6,4525.5,0.6433]
[1758275340327,0.9035,4525.6,4525.5,0.8987]
[1758275340522,0.223,4525.7,4525.5,0.6804]